bitfinex-derivatives/quotes_ETHF0:USTF0_20241230
["timestamp","ask_amount","ask_price","bid_price","bid_amount"]
[1735532636171,0.872086,3409.8,3409.7,1.32919403]
[1735532637471,0.872086,3409.8,3409.7,1.03521403]
[1735532637676,5.48751887,3409.8,3409.7,1.03521403]
[1735532638875,5.48751887,3409.8,3409.7,1.32919403]
[1735532640873,5.48751887,3409.8,3409.7,1.03521403]
[1735532644782,0.872086,3409.8,3409.7,1.03521403]
[1735532645788,0.431,3409.8,3409.7,1.03521403]
[1735532646793,5.67170091,3409.8,3409.7,1.03521403]
[1735532648782,5.96567091,3409.8,3409.7,1.03521403]
[1735532649888,11.73065308,3409.8,3409.7,1.03521403]
[1735532650085,0.294,3409.5,3409.3,0.4297]
[1735532650390,0.294,3409.4,3409.3,1.03521403]
[1735532650585,1.131,3409.4,3409.3,1.03521403]
[1735532651490,12.13668308,3409.4,3409.3,1.03521403]
[1735532652291,11.84268308,3409.4,3409.3,1.03521403]
[1735532652491,11.84268308,3409.4,3409.3,1.32922403]
[1735532652492,11.00568308,3409.4,3409.3,1.32922403]
[1735532653193,11.00568308,3409.4,3409.3,2.60342403]
[1735532653391,5.06185311,3409.5,3409.3,2.30941403]
[1735532653591,5.06185311,3409.5,3409.4,1.32921403]
[1735532654787,4.62076711,3409.5,3409.4,1.32921403]
[1735532655701,10.55033016,3409.5,3409.4,1.32921403]
[1735532657089,10.55033016,3409.5,3409.4,0.294]
[1735532657289,5.76498217,3409.6,3409.5,0.29399]
[1735532657493,5.76498217,3409.6,3409.5,1.32920403]
[1735532658190,5.76498217,3409.6,3409.5,2.64788963]
[1735532658698,5.76498217,3409.7,3409.5,2.35389963]
[1735532658885,5.76498217,3409.7,3409.6,0.29399]
[1735532659091,5.76498217,3409.7,3409.6,0.75344856]
[1735532659893,5.76498217,3409.7,3409.6,0.45945856]
[1735532660088,5.76498217,3409.7,3409.6,0.75342856]
[1735532660390,6.05895217,3409.7,3409.6,0.45945856]
[1735532660596,6.51385217,3409.7,3409.6,0.45945856]
[1735532661297,5.97530399,3409.7,3409.3,0.8616]
[1735532661597,0.432,3409.6,3409.3,0.8616]
[1735532662194,0.432,3409.6,3409.3,1.1556]
[1735532662398,5.78226832,3409.4,3409.3,1.1556]
[1735532662587,5.78226832,3409.4,3409.3,0.8616]
[1735532662794,5.78226832,3409.4,3409.3,1.1556]
[1735532664292,10.56761631,3409.4,3409.3,1.1556]
[1735532664695,10.56761631,3409.4,3409.3,0.8616]
[1735532664890,10.99951631,3409.4,3409.3,0.8616]
[1735532665101,10.99951631,3409.4,3409.3,1.1556]
[1735532665595,6.21416832,3409.4,3409.3,0.8616]
[1735532666003,6.21416832,3409.4,3409.3,1.1556]
[1735532666404,6.21416832,3409.4,3409.3,0.8616]
[1735532666903,11.44060231,3409.4,3409.3,0.8616]
[1735532667502,11.44060231,3409.4,3409.3,1.1556]
[1735532668003,11.44060231,3409.4,3409.3,0.8616]
[1735532669204,11.44060231,3409.4,3409.3,1.1556]
[1735532671898,11.44060231,3409.4,3409.0,4.61802358]
[1735532672103,0.29403,3409.0,3408.9,4.61802358]
[1735532673205,3.2078,3409.2,3408.9,4.61802358]
[1735532673407,1.15432,3409.1,3408.9,4.61802358]
[1735532673605,5.22643399,3409.0,3408.8,2.64793963]
[1735532673805,5.67323399,3409.0,3408.8,2.64793963]
[1735532674705,0.4468,3409.0,3408.9,0.4171]
[1735532676008,11.4398698,3409.0,3408.9,0.4171]
[1735532676607,11.4398698,3409.0,3408.8,0.29404]
[1735532676915,0.29403,3408.9,3408.7,3.50185]
[1735532677208,0.29403,3408.9,3408.7,3.2078]
[1735532678212,0.44117654,3408.8,3408.7,3.2078]
[1735532678708,0.44117654,3408.8,3408.6,2.35389963]
[1735532679216,0.44117654,3408.8,3408.6,2.64794963]
[1735532679701,4.62088505,3408.8,3408.6,2.64794963]
[1735532679906,4.62088505,3408.8,3408.6,2.35389963]
[1735532680107,4.62088505,3408.8,3408.6,2.64795963]
[1735532680809,5.06206159,3408.8,3408.6,2.64795963]
[1735532682012,3.46457714,3408.7,3408.6,2.64795963]
[1735532682311,3.46457714,3408.7,3408.6,1.03531524]
[1735532682811,3.46457714,3408.7,3408.1,4.61802358]
[1735532683009,1.2619,3408.6,3408.2,1.03531524]
[1735532683209,0.29409,3408.4,3408.2,1.03531524]
[1735532683411,0.29409,3408.3,3408.2,1.03531524]
[1735532684311,0.29409,3408.3,3408.1,4.61802358]
[1735532684512,0.441,3408.2,3408.0,0.4145]
[1735532684712,0.4228,3408.1,3408.0,0.4145]
[1735532685518,2.73104728,3408.1,3408.0,0.4145]
[1735532686915,0.4228,3408.1,3408.0,0.4145]
[1735532687616,0.4228,3408.1,3407.8,2.35639741]
[1735532687617,0.29412,3408.0,3407.8,2.35639741]
[1735532687811,0.73972,3408.0,3407.7,0.4139]
[1735532688413,0.4456,3408.0,3407.8,2.35639741]
[1735532688612,2.75187725,3408.0,3407.8,2.35639741]
[1735532690207,0.4456,3408.0,3407.8,2.35639741]
[1735532690413,0.4456,3408.0,3407.7,0.4139]
[1735532690611,0.4456,3408.0,3407.7,0.70804]
[1735532691307,2.30627725,3408.1,3407.9,0.29412]
[1735532692622,2.30627725,3408.1,3407.8,0.29412]
[1735532692917,3.90337092,3408.2,3407.9,0.29412]
[1735532692918,0.453,3408.0,3407.9,0.29412]
[1735532695921,0.453,3408.0,3407.7,0.4139]
[1735532696122,0.74712,3408.0,3407.7,0.4139]
[1735532696315,0.4543,3407.9,3407.7,0.4139]
[1735532696817,0.427,3407.8,3407.7,0.4139]
[1735532698120,0.427,3407.8,3407.7,0.70804]
[1735532698521,0.427,3407.8,3407.7,0.4139]
[1735532702516,0.427,3407.8,3407.7,0.70804]
[1735532703217,0.427,3407.8,3407.7,0.4139]
[1735532705214,0.42515506,3407.8,3407.7,0.4139]
[1735532705825,0.71928506,3407.8,3407.5,3.6336]
[1735532706927,0.42515506,3407.8,3407.5,3.92775]
[1735532707321,0.42515506,3407.8,3407.5,4.96379503]
[1735532708124,0.42515506,3407.8,3407.5,4.66964503]
[1735532708325,0.42515506,3407.8,3407.5,3.6336]
[1735532708625,0.71928506,3407.8,3407.5,3.2078]
[1735532708824,0.29414,3407.7,3407.5,3.2078]
[1735532710124,0.29416,3407.5,3407.3,0.4368]
[1735532710327,1.16206,3407.4,3407.3,0.4368]
[1735532710628,1.59456,3407.4,3407.1,3.2078]
[1735532711229,1.3004,3407.4,3407.1,3.2078]
[1735532711423,1.59457,3407.4,3407.1,3.2078]
[1735532711929,1.16207,3407.4,3407.1,3.2078]
[1735532712120,0.8679,3407.4,3407.1,3.50199]
[1735532714026,0.8679,3407.4,3407.1,3.2078]
[1735532714228,1.16207,3407.4,3407.1,3.2078]
[1735532714426,1.16207,3407.4,3407.0,0.7417]
[1735532715030,0.74727,3407.4,3407.0,0.7417]
[1735532716236,0.4531,3407.4,3407.0,0.4475]
[1735532716435,0.74727,3407.4,3407.0,0.7417]
[1735532717037,3.05354725,3407.4,3407.0,0.7417]
[1735532718541,0.29417,3407.3,3407.0,0.4475]
[1735532719138,3.05354725,3407.4,3407.0,0.4475]
[1735532719740,0.29417,3407.3,3407.0,0.4475]
[1735532720839,2.60044725,3407.3,3407.0,0.4475]
[1735532721144,2.30627725,3407.3,3407.0,0.7417]
[1735532721340,2.30627725,3407.3,3407.0,0.4475]
[1735532722243,0.4343,3407.2,3407.0,0.4475]
[1735532723242,0.4343,3407.2,3407.0,0.7417]
[1735532723936,0.4343,3407.2,3407.0,0.4475]
[1735532724347,3.2078,3407.1,3407.0,0.4475]
[1735532724540,3.6347,3407.1,3406.8,0.29421]
[1735532725141,3.6347,3407.1,3406.7,0.4206]
[1735532725339,3.6347,3407.1,3406.9,0.29421]
[1735532725543,2.30627725,3407.0,3406.9,0.29421]
[1735532725841,2.30627725,3407.0,3406.7,0.29422]
[1735532726040,0.4271,3406.9,3406.7,0.29422]
[1735532726239,0.4271,3406.9,3406.5,0.4206]
[1735532726443,0.4558,3406.8,3406.7,0.29422]
[1735532727640,2.73337725,3406.9,3406.8,0.29422]
[1735532729239,2.30627725,3406.9,3406.8,2.65138901]
[1735532730050,2.30627725,3406.9,3406.8,0.29422]
[1735532730249,2.30627725,3406.9,3406.8,1.33069318]
[1735532730744,2.30627725,3406.9,3406.7,1.33069318]
[1735532730947,2.30627725,3406.9,3406.8,0.4562]
[1735532731250,0.4123,3406.9,3406.8,0.4562]
[1735532731449,0.4123,3406.9,3406.7,1.03647318]
[1735532731654,0.4123,3406.9,3406.7,1.33069318]
[1735532732845,2.30627725,3406.8,3406.7,1.33069318]
[1735532733543,2.30627725,3406.8,3406.7,1.03647318]
[1735532733746,2.30627725,3406.8,3406.5,1.91327318]
[1735532733945,0.431,3406.7,3406.5,0.8768]
[1735532735147,2.30627725,3406.6,3406.5,0.8768]
[1735532736452,2.73727725,3406.7,3406.5,0.8768]
[1735532736956,2.73727725,3406.7,3406.5,1.17104]
[1735532737253,2.73727725,3406.7,3406.6,1.03647318]
[1735532741042,2.73727725,3406.7,3406.5,1.17104]
[1735532741649,2.73727725,3406.7,3406.5,0.8768]
[1735532741844,2.73727725,3406.7,3406.6,0.29423]
[1735532742759,2.73727725,3406.7,3406.5,1.17104]
[1735532744756,3.18967725,3406.7,3406.5,1.17104]
[1735532745751,1.03647318,3406.6,3406.2,3.6518]
[1735532745955,1.33072318,3406.4,3406.2,3.2078]
[1735532747151,0.29426,3406.3,3406.2,3.2078]
[1735532747351,1.33072318,3406.4,3406.2,3.2078]
[1735532747551,2.30627725,3406.3,3406.2,3.2078]
[1735532749456,0.29428,3406.1,3405.9,0.472]
[1735532749862,0.4694,3406.0,3405.9,0.472]
[1735532752857,0.2943,3405.9,3405.7,3.6702]
[1735532753059,1.03647318,3405.8,3405.7,0.4624]
[1735532753255,3.97149,3406.0,3405.6,0.4429]
[1735532753256,4.71367318,3406.0,3405.6,0.4429]
[1735532753562,4.71367318,3406.0,3405.6,1.47937318]
[1735532753756,0.4874,3405.9,3405.6,1.47937318]
[1735532755460,0.7817,3405.9,3405.6,1.47937318]
[1735532755657,0.4874,3405.9,3405.6,1.47937318]
[1735532755857,2.79367725,3405.9,3405.6,0.4429]
[1735532756056,2.79367725,3405.9,3405.6,1.47937318]
[1735532756556,2.79367725,3405.9,3405.6,0.4429]
[1735532757351,3.34275043,3405.8,3405.3,1.03647318]
[1735532757556,0.4614,3405.7,3405.3,1.03647318]
[1735532757861,0.4614,3405.7,3405.4,0.29434]
[1735532758065,0.46,3405.6,3405.4,0.29434]
[1735532758563,2.76627725,3405.6,3405.4,0.29434]
[1735532758762,2.76627725,3405.6,3405.3,0.29434]
[1735532759062,2.76627725,3405.6,3405.4,0.29433]
[1735532759659,0.46,3405.6,3405.4,0.29433]
[1735532760563,0.4614,3405.7,3405.2,3.6641]
[1735532760861,2.75957725,3405.8,3405.2,3.6641]
[1735532761057,2.30627725,3405.8,3405.7,0.29431]
[1735532761459,2.30627725,3405.8,3405.7,1.67771]
[1735532761869,3.27267725,3406.2,3405.8,0.2943]
[1735532762165,3.56694725,3406.2,3405.7,1.67771]
[1735532762369,3.27267725,3406.2,3405.9,0.29429]
[1735532763256,3.56694725,3406.2,3405.8,0.2943]
[1735532763457,3.56694725,3406.2,3405.9,0.29429]
[1735532764865,2.30627725,3406.1,3405.9,0.29429]
[1735532765463,2.30627725,3406.1,3405.8,0.2943]
[1735532765664,2.60055725,3406.1,3405.8,0.2943]
[1735532765869,0.29429,3405.9,3405.7,0.9151]
[1735532766059,3.50209,3405.9,3405.7,0.9151]
[1735532766267,0.7644,3405.8,3405.7,0.4486]
[1735532768164,0.4701,3405.8,3405.7,0.4486]
[1735532768565,0.7644,3405.8,3405.7,0.4486]
[1735532770468,3.07068725,3405.8,3405.5,0.29432]
[1735532770770,0.9456,3405.7,3405.5,0.29432]
[1735532771274,1.23991,3405.7,3405.4,0.73873]
[1735532771569,0.9456,3405.7,3405.4,0.4444]
[1735532771773,1.23991,3405.7,3405.4,0.73874]
[1735532772469,0.9456,3405.7,3405.4,0.73874]
[1735532772677,0.9456,3405.7,3405.5,0.29433]
[1735532773273,0.9456,3405.7,3405.4,0.73873]
[1735532773671,0.29433,3405.5,3405.2,3.2078]
[1735532773872,1.23991,3405.7,3405.2,3.50215]
[1735532774071,0.4372,3405.4,3405.2,3.50215]
[1735532775369,0.4372,3405.4,3405.2,3.2078]
[1735532775571,0.4372,3405.4,3405.2,3.50215]
[1735532775776,0.4372,3405.4,3405.2,3.2078]
[1735532776374,2.36004893,3405.3,3404.8,3.2078]
[1735532776575,0.29437,3405.1,3404.9,0.4477]
[1735532776978,0.76287,3405.0,3404.9,0.4477]
[1735532777188,0.4685,3405.0,3404.7,0.462]
[1735532777673,0.76287,3405.0,3404.7,0.462]
[1735532778179,0.4685,3405.0,3404.7,0.462]
[1735532778684,5.51407725,3405.1,3404.9,0.29438]
[1735532779080,5.51407725,3405.1,3405.0,0.4477]
[1735532779583,5.51407725,3405.1,3405.0,0.9192]
[1735532779781,2.30627725,3405.1,3405.0,3.57361893]
[1735532779974,3.46237092,3405.3,3405.0,8.27924893]
[1735532780175,2.30322131,3405.3,3405.0,8.27924893]
[1735532780383,2.30322131,3405.3,3405.2,0.29435]
[1735532780581,2.30322131,3405.3,3405.1,0.29436]
[1735532781083,2.30322131,3405.3,3405.0,19.17924893]
[1735532781289,2.30322131,3405.3,3405.2,0.29435]
[1735532781677,0.4767,3405.6,3405.2,0.29435]
[1735532782281,0.4767,3405.6,3405.3,0.29434]
[1735532782681,0.9147,3405.8,3405.5,0.29433]
[1735532783385,0.9147,3405.8,3405.4,0.72583]
[1735532783986,0.9147,3405.8,3405.5,0.29433]
[1735532784487,0.9147,3405.8,3405.4,0.29433]
[1735532784488,1.20901,3405.8,3405.4,0.29433]
[1735532784695,0.29432,3405.6,3405.2,0.29435]
[1735532784885,1.20901,3405.8,3405.4,0.29433]
[1735532785191,1.20901,3405.8,3405.1,0.4315]
[1735532785387,1.20901,3405.8,3405.5,0.29433]
[1735532785794,5.82989505,3405.8,3405.5,0.29433]
[1735532786581,5.53558505,3405.8,3405.6,0.29432]
[1735532786786,0.9147,3405.8,3405.6,0.29432]
[1735532787391,1.209,3405.8,3405.5,0.29432]
[1735532789298,0.44159768,3405.7,3405.5,0.29432]
[1735532789797,0.44159768,3405.7,3405.3,3.2078]
[1735532790192,0.44159768,3405.7,3405.6,0.29432]
[1735532790594,0.73590768,3405.7,3405.4,0.29433]
[1735532791099,0.73590768,3405.7,3405.5,0.29433]
[1735532791300,0.44159768,3405.7,3405.5,0.29433]
[1735532791503,0.44159768,3405.7,3405.3,3.2078]
[1735532791797,0.44159768,3405.7,3405.6,0.29432]
[1735532792200,4.62088505,3405.7,3405.6,0.29432]
[1735532792399,4.62088505,3405.7,3405.5,0.29432]
[1735532792598,4.62088505,3405.7,3405.6,0.29432]
[1735532792989,4.62088505,3405.7,3405.3,3.2078]
[1735532793197,0.4326,3405.6,3405.2,4.61802358]
[1735532793390,0.4326,3405.6,3405.3,0.29434]
[1735532793799,0.4326,3405.6,3405.2,4.91237358]
[1735532793995,0.4786,3405.5,3405.3,0.29434]
[1735532796900,0.4786,3405.5,3405.1,5.04952358]
[1735532797100,0.4786,3405.5,3405.2,0.29435]
[1735532797501,0.4786,3405.5,3405.3,0.29434]
[1735532799002,0.4326,3405.6,3405.3,0.29434]
[1735532799201,0.8931,3405.6,3405.3,0.29434]
[1735532799498,0.8931,3405.6,3405.1,5.04952358]
[1735532799904,0.8931,3405.6,3405.3,0.29434]
[1735532800196,0.29435,3405.2,3405.1,4.61802358]
[1735532800597,3.2078,3405.4,3405.1,3.93162358]
[1735532800801,0.29435,3405.3,3405.1,3.93162358]
[1735532801103,0.70995,3405.2,3405.1,3.93162358]
[1735532801299,1.14735,3405.2,3405.1,3.93162358]
[1735532802499,1.2946137,3405.2,3404.5,3.50221]
[1735532802700,0.29438,3404.9,3404.6,0.29441]
[1735532803114,0.4517,3404.8,3404.6,0.29441]
[1735532803602,0.2944,3404.7,3404.5,3.2078]
[1735532803807,0.4309,3404.6,3404.5,3.2078]
[1735532804201,0.4309,3404.6,3404.5,3.50221]
[1735532804600,0.4309,3404.6,3404.5,0.29441]
[1735532804906,0.4309,3404.6,3404.4,0.29442]
[1735532807010,0.4309,3404.6,3404.5,0.29441]
[1735532807407,0.4309,3404.6,3404.4,0.29442]
[1735532807608,0.4309,3404.6,3404.5,0.29441]
[1735532808809,0.4309,3404.6,3404.4,0.29442]
[1735532809204,0.4309,3404.6,3404.2,3.2078]
[1735532809400,0.4309,3404.6,3404.3,2.65446893]
[1735532809606,0.4309,3404.6,3404.3,2.36004893]
[1735532809806,0.4309,3404.6,3404.3,2.65447893]
[1735532811316,0.4309,3404.6,3404.3,0.29443]
[1735532811515,0.4309,3404.6,3404.2,3.2078]
[1735532811809,0.4309,3404.6,3404.5,0.29441]
[1735532813006,4.61634258,3405.0,3404.3,2.36004893]
[1735532813209,4.61634258,3405.0,3404.8,0.29438]
[1735532814308,1.3122,3405.1,3404.8,0.29438]
[1735532814509,1.3122,3405.1,3404.8,0.29439]
[1735532815212,1.3122,3405.1,3404.9,0.29438]
[1735532815717,0.44169891,3405.0,3404.9,0.29438]
[1735532816222,0.44169891,3405.0,3404.5,0.4126]
[1735532816517,0.44169891,3405.0,3404.9,0.29438]
[1735532817723,6.00954784,3405.0,3404.0,6.92484669]
[1735532817915,0.29438,3404.9,3404.5,0.29441]
[1735532818129,0.29439,3404.8,3404.5,0.29441]
[1735532818818,0.44169891,3405.0,3404.9,0.29438]
[1735532819220,0.73607891,3405.0,3404.6,0.29441]
[1735532819416,0.44169891,3404.7,3404.5,0.29441]
[1735532819616,0.44169891,3404.7,3404.6,0.29441]
[1735532820622,3.50218,3405.0,3404.7,0.29439]
[1735532821523,0.29438,3404.9,3404.2,0.4385]
[1735532821731,0.29442,3404.5,3404.2,0.73294]
[1735532821924,1.2983,3404.4,3404.3,0.29443]
[1735532823427,1.2983,3404.4,3404.2,0.73293]
[1735532823624,4.91072258,3404.9,3404.3,0.29443]
[1735532823830,5.47464258,3404.9,3404.6,0.2944]
[1735532824123,0.4327,3404.8,3404.6,0.2944]
[1735532824327,0.7271,3404.8,3404.4,0.29442]
[1735532825128,0.4327,3404.8,3404.2,0.4385]
[1735532825326,0.29442,3404.5,3404.3,0.29443]
[1735532825532,0.73723,3404.4,3404.2,0.4385]
[1735532825726,0.4388,3404.3,3404.2,0.73293]
[1735532826123,0.4388,3404.3,3404.2,0.4385]
[1735532826329,0.29444,3404.2,3404.1,3.2078]
[1735532828329,0.4388,3404.3,3403.7,3.2078]
[1735532828523,0.29446,3404.0,3403.8,0.29447]
[1735532828729,0.4436,3403.9,3403.8,0.29447]
[1735532828930,0.8749,3403.9,3403.8,0.29447]
[1735532829125,1.16937,3403.9,3403.7,3.2078]
[1735532829324,0.8749,3403.9,3403.8,0.29447]
[1735532833339,0.4388,3404.3,3403.7,5.56784893]
[1735532833638,0.4388,3404.3,3404.2,0.29444]
[1735532836538,0.4388,3404.3,3404.2,0.74914]
[1735532838438,0.73323,3404.3,3404.1,0.29445]
[1735532839340,0.4388,3404.3,3404.1,0.29445]
[1735532840032,0.73611,3404.2,3403.3,3.2078]
[1735532840233,0.73611,3404.2,3403.2,6.92484669]
[1735532840234,0.2945,3403.6,3403.2,6.92484669]
[1735532840442,0.8977,3403.5,3403.2,7.21936669]
[1735532840832,0.8977,3403.5,3403.3,6.92484669]
[1735532841130,1.19221,3403.5,3403.3,6.92484669]
[1735532841335,0.29451,3403.4,3403.3,6.92484669]
[1735532842043,0.29451,3403.4,3403.1,0.29453]
[1735532842238,0.8977,3403.5,3402.9,3.6264]
[1735532842542,0.29451,3403.4,3402.9,3.92095]
[1735532842741,1.19221,3403.5,3403.0,0.29454]
[1735532842943,1.19221,3403.5,3403.1,2.36004893]
[1735532842944,0.8977,3403.5,3403.1,2.36004893]
[1735532843135,0.8977,3403.5,3403.4,3.2078]
[1735532844044,0.8977,3403.5,3403.4,3.50231]
[1735532844245,0.8977,3403.5,3403.4,3.2078]
[1735532845039,1.1922,3403.5,3403.4,3.2078]
[1735532845840,0.8977,3403.5,3403.4,3.2078]
[1735532846040,0.8977,3403.5,3403.4,3.50231]
[1735532846645,0.8977,3403.5,3403.4,3.2078]
[1735532847346,0.8977,3403.5,3403.2,0.29452]
[1735532847546,0.8977,3403.5,3403.3,0.29451]
[1735532848241,0.29451,3403.4,3403.1,2.65457893]
[1735532848641,0.8977,3403.5,3403.1,0.29453]
[1735532848946,0.8977,3403.5,3403.2,0.29452]
[1735532849846,0.8977,3403.5,3402.5,0.73645]
[1735532849847,0.29457,3402.8,3402.5,6.92484669]
[1735532850144,4.0697,3402.7,3402.5,6.92484669]
[1735532850640,0.29458,3402.6,3402.5,6.92484669]
[1735532851543,6.42974893,3402.7,3402.2,0.01070151]
[1735532851745,0.2946,3402.3,3402.2,0.01070151]
[1735532852046,3.5024,3402.3,3402.2,0.01070151]
[1735532852751,3.5024,3402.3,3401.5,7.85565934]
[1735532852752,3.2078,3402.3,3401.5,8.15032934]
[1735532852944,2.36004893,3402.1,3401.5,7.85565934]
[1735532853144,3.50244,3401.9,3401.5,8.15032934]
[1735532853344,3.50244,3401.9,3401.5,1.22548265]
[1735532853536,3.50244,3401.9,3401.5,0.93081265]
[1735532853537,3.2078,3401.9,3401.5,0.93081265]
[1735532853748,0.29466,3401.7,3401.5,0.93081265]
[1735532854142,0.29467,3401.6,3401.5,0.93081265]
[1735532854342,0.29466,3401.7,3401.5,0.93081265]
[1735532854645,0.29467,3401.6,3401.5,0.93081265]
[1735532855247,0.2947,3401.3,3400.7,0.29474]
[1735532855444,0.29466,3401.7,3401.1,0.4298]
[1735532855750,0.29466,3401.7,3401.3,0.29469]
[1735532856051,3.649,3401.9,3401.1,0.4298]
[1735532856348,0.29467,3401.6,3401.1,0.7245]
[1735532856543,3.649,3401.9,3401.1,0.7245]
[1735532856849,0.29467,3401.6,3401.2,0.2947]
[1735532857343,0.29469,3401.4,3401.0,0.29472]
[1735532857543,2.36004893,3401.7,3400.7,0.4272]
[1735532857749,0.2947,3401.3,3400.9,0.29472]
[1735532858049,0.2947,3401.2,3400.8,3.6632]
[1735532858550,0.29469,3401.3,3400.9,0.29472]
[1735532859050,0.4545,3401.5,3400.8,3.6632]
[1735532859252,0.29471,3401.1,3400.8,3.6632]
[1735532859448,0.4545,3401.5,3400.8,3.6632]
[1735532859648,0.2947,3401.2,3400.8,3.6632]
[1735532859844,0.2947,3401.2,3400.8,3.95793]
[1735532860044,0.4545,3401.5,3400.8,3.6632]
[1735532860246,0.29469,3401.3,3400.8,3.6632]
[1735532860444,2.36004893,3401.4,3400.8,3.95793]
[1735532860445,0.7474,3401.2,3400.8,3.95793]
[1735532860647,0.4527,3401.2,3400.8,3.95793]
[1735532860950,0.4527,3401.2,3400.9,0.29472]
[1735532861854,0.4527,3401.2,3401.0,0.29471]
[1735532863444,3.2078,3401.6,3400.8,3.6632]
[1735532863755,3.2078,3401.6,3401.3,0.29469]
[1735532864255,3.50247,3401.6,3401.3,0.29469]
[1735532864552,3.50247,3401.6,3401.2,0.29469]
[1735532864751,3.50247,3401.6,3400.9,15.9]
[1735532865143,3.50247,3401.6,3401.2,0.29469]
[1735532865751,3.2078,3401.6,3400.8,3.6632]
[1735532865953,3.2078,3401.6,3401.3,0.29468]
[1735532866454,3.50247,3401.6,3401.3,0.29468]
[1735532867046,3.50247,3401.6,3401.4,0.4272]
[1735532868750,0.29467,3401.5,3401.4,0.4272]
[1735532872455,3.2078,3401.6,3401.4,0.4272]
[1735532872456,3.50247,3401.6,3401.4,0.72188]
[1735532872752,0.29467,3401.5,3401.4,0.4272]
[1735532873149,3.2078,3401.6,3401.4,0.4272]
[1735532873351,3.2078,3402.2,3402.0,0.29462]
[1735532873549,3.50241,3402.2,3402.1,0.9091]
[1735532873748,3.50241,3402.2,3402.1,0.4531]
[1735532873947,5.86245893,3402.2,3402.1,0.4531]
[1735532876353,0.29465,3401.8,3401.6,0.75067]
[1735532876655,0.29467,3401.6,3401.5,0.4199]
[1735532878156,0.29468,3401.4,3401.2,0.2947]
[1735532878355,3.2078,3401.7,3401.1,0.4199]
[1735532878553,0.29467,3401.5,3401.2,0.2947]
[1735532878759,0.29468,3401.5,3401.2,0.2947]
[1735532879050,0.29467,3401.6,3401.2,0.2947]
[1735532879255,3.2078,3401.7,3401.1,0.4199]
[1735532879458,0.29467,3401.6,3401.3,0.29469]
[1735532879651,3.2078,3401.7,3401.1,0.4199]
[1735532879848,0.29467,3401.5,3401.2,0.2947]
[1735532880359,0.29467,3401.5,3401.1,0.4199]
[1735532880554,3.2078,3401.7,3401.2,0.2947]
[1735532880756,0.29468,3401.5,3401.2,0.2947]
[1735532881452,0.29467,3401.6,3401.1,0.4199]
[1735532881653,0.29467,3401.6,3401.3,0.29468]
[1735532882858,3.2078,3401.7,3401.3,0.29468]
[1735532883057,0.29467,3401.6,3401.3,0.29468]
[1735532883253,3.2078,3401.7,3401.3,0.29468]
[1735532883553,0.29468,3401.5,3401.1,0.4199]
[1735532883762,0.29468,3401.5,3401.3,0.29469]
[1735532883964,0.29467,3401.6,3401.4,0.29468]
[1735532885355,0.73407,3401.6,3401.3,0.29468]
[1735532885555,0.73407,3401.6,3401.4,0.29468]
[1735532886953,0.4394,3401.6,3401.1,0.4199]
[1735532887150,0.73407,3401.6,3401.4,0.29468]
[1735532888061,0.4394,3401.6,3401.5,0.29467]
[1735532888561,0.8799,3401.8,3401.4,3.2078]
[1735532888760,0.4307,3401.8,3401.7,0.29466]
[1735532890158,0.72535,3401.8,3401.6,0.72636]
[1735532890358,0.72535,3401.8,3401.6,0.4317]
[1735532890359,5.86250893,3401.7,3401.6,0.4317]
[1735532890564,5.98834893,3401.7,3401.5,0.4378]
[1735532890862,3.6283,3401.7,3401.5,0.4378]
[1735532891259,0.29467,3401.6,3401.5,0.4378]
[1735532891464,0.29467,3401.6,3401.3,0.29468]
[1735532891865,0.29467,3401.6,3401.2,0.4378]
[1735532892065,0.29467,3401.6,3401.3,0.29469]
[1735532892666,0.70777,3401.6,3401.3,0.29469]
[1735532894776,0.29467,3401.5,3401.2,0.4378]
[1735532895086,0.29469,3401.4,3401.2,0.4378]
[1735532895379,0.4131,3401.6,3401.2,0.4378]
[1735532895581,0.29469,3401.4,3401.2,0.4378]
[1735532896372,0.2947,3401.2,3401.1,0.4317]
[1735532896575,0.2947,3401.3,3401.1,0.4317]
[1735532896778,0.4303,3401.2,3401.1,0.4317]
[1735532897181,4.32816042,3401.2,3401.1,0.4317]
[1735532897782,4.77346042,3401.2,3401.1,0.4317]
[1735532898575,1.31777763,3401.2,3401.1,0.4317]
[1735532898786,1.61247763,3401.2,3401.1,0.4317]
[1735532899878,1.1703,3401.2,3401.1,0.4317]
[1735532901183,1.1703,3401.2,3401.0,3.2078]
[1735532901383,0.75181364,3401.1,3401.0,3.2078]
[1735532902691,0.75181364,3401.1,3400.9,0.29472]
[1735532903081,4.65751787,3401.1,3400.9,0.29472]
[1735532903286,4.65751787,3401.1,3400.8,0.29473]
[1735532903488,4.65751787,3401.1,3400.9,0.29472]
[1735532903884,4.65747525,3401.1,3400.9,0.29472]
[1735532904287,4.20207525,3401.1,3401.0,0.4311]
[1735532904487,0.29637102,3401.1,3401.0,0.4311]
[1735532904993,5.34134258,3401.2,3401.0,0.4311]
[1735532905380,0.29640484,3401.1,3401.0,0.4311]
[1735532905584,5.34134258,3401.2,3401.0,0.4311]
[1735532905786,0.29472,3401.0,3400.7,3.92024]
[1735532905984,0.59118189,3401.0,3400.7,3.92024]
[1735532906191,1.02489189,3400.9,3400.7,3.6255]
[1735532906390,1.46699189,3400.9,3400.7,3.6255]
[1735532906593,0.29646189,3400.8,3400.7,3.6255]
[1735532906889,0.29641638,3400.8,3400.7,3.6255]
[1735532907294,2.30853385,3400.8,3400.7,3.6255]
[1735532907494,2.30853385,3400.8,3400.7,3.92024]
[1735532908288,2.30853385,3400.8,3400.7,3.6255]
[1735532908594,0.29641638,3400.8,3400.7,0.4177]
[1735532909093,0.59114638,3400.8,3400.7,0.4177]
[1735532909394,4.33860078,3400.9,3400.7,0.4177]
[1735532909591,0.29630244,3400.8,3400.3,10.13264669]
[1735532909800,0.29630244,3400.8,3400.6,0.29475]